Cogmind - Beta 13 @@@ ROGUE MODE // 2024.04.13 @ 19:04:01 Player: Olafz Result: Destroyed by S-27 Virus with Autogun Performance ------------- Evolutions (3) 1500 Regions Visited (6) 1200 Robots Destroyed (88) 440 Value Destroyed (2270) 2270 Prototype IDs (15) 300 Alien Tech Used (0) 0 Bonus (122) 122 TOTAL SCORE: 5832 Bonus ------- High Alert Combat Kills 206 Friendly Fire -84 Cogmind --------- Core Integrity 0/700 Matter 300/300 Energy 100/100 System Corruption 3% Temperature Cool (0) Movement Rolling (174) Ox2 Location -7/Recycling Parts ------- > --- POWER (1) -------- (None) > --- PROPULSION (4) --- Wheeled Gravmag Exoskeleton > --- UTILITY (5) ------ Armored Scrap Engine Improved Heat Sink Large Storage Unit Hacking Suite > --- WEAPON (3) ------- Heavy Mace Heavy Mace Heavy Mace > --- INVENTORY (15) --- Nuclear Core Advanced Weight Redist. System Machine Analyzer Advanced Targeting Computer Hacking Suite Hacking Suite Field Laser Plasma Cannon Heavy Mace Katana Peak State ------------ > --- POWER ------------ Heavy Deuterium Engine > --- PROPULSION ------- Xenon Bombardment Thruster Xenon Bombardment Thruster Xenon Bombardment Thruster Xenon Bombardment Thruster > --- UTILITY ---------- Improved Heat Sink Large Storage Unit Advanced Weight Redist. System Hacking Suite > --- WEAPON ----------- Field Laser Plasma Cannon > --- INVENTORY -------- Nuclear Core Cesium-ion Thruster Advanced Weight Redist. System Machine Analyzer Improved Sensor Array Advanced Targeting Computer Hacking Suite Field Laser Field Laser Rocket Launcher Katana [Rating: 41] Favorites ----------- Power Heavy Ion Engine Engine Heavy Ion Engine Power Core Light Nuclear Core Propulsion Aluminum Leg Treads Light Treads Leg Aluminum Leg Wheel Constructs Hover Unit Hover Unit Flight Unit Xenon Bombardment Thruster Utility Large Storage Unit Device Improved Heat Sink Storage Large Storage Unit Processor Targeting Computer Hackware Hacking Suite Protection Hardened Medium Armor Plating Weapon Particle Gun Energy Gun Particle Gun Energy Cannon Advanced Beam Cannon Ballistic Gun Light Assault Rifle Ballistic Cannon Light Cannon Launcher Rocket Launcher Special Weapon Plasma Cutter Impact Weapon Heavy Mace Slashing Weapon Katana Build | -11 -10 -9 -8 -7 -7 -7 ------- Run | Yrd Mat Mat Mat Fac Sto Rec Slots Evolved 6 | . . 2 2 2 . . Power . | . . . . . . . Propulsion 2 | . . 2 . . . . Utility 3 | . . . 1 2 . . Weapon 1 | . . . 1 . . . Parts Attached 92 | . 10 25 33 18 1 5 Power 16 | . 1 3 6 5 1 . Engine 9 | . 1 3 4 1 . . Core 7 | . . . 2 4 1 . Reactor . | . . . . . . . Propulsion 33 | . 5 15 12 1 . . Treads 3 | . . . 3 . . . Leg 20 | . 5 10 5 . . . Wheel . | . . . . . . . Hover 5 | . . 5 . . . . Flight 5 | . . . 4 1 . . Utility 14 | . 2 1 5 4 . 2 Device 10 | . 1 1 4 2 . 2 Storage 1 | . 1 . . . . . Processor 1 | . . . . 1 . . Hackware 1 | . . . . 1 . . Protection 1 | . . . 1 . . . Artifact . | . . . . . . . Weapon 29 | . 2 6 10 8 . 3 Energy Gun 16 | . 1 4 5 6 . . Energy Cannon 3 | . . 1 . 2 . . Ballistic Gun 3 | . . 1 2 . . . Ballistic Cannon 1 | . 1 . . . . . Launcher 1 | . . . 1 . . . Special Weapon 1 | . . . 1 . . . Impact Weapon 3 | . . . . . . 3 Slashing Weapon 1 | . . . 1 . . . Piercing Weapon . | . . . . . . . Special Melee Weapon . | . . . . . . . Unidentified Prototypes 2 | . . 1 . 1 . . Parts Lost 31 | . 3 5 14 2 7 . Power 4 | . 1 . 3 . . . Propulsion 15 | . 1 4 5 2 3 . Utility 4 | . . . 1 . 3 . Weapon 8 | . 1 1 5 . 1 . Highest Loss Streak 7 | . 3 2 7 1 7 . To Critical Strikes 1 | . . 1 . . . . Average Slot Usage (%) 71 | . 81 94 82 73 52 37 Engine 6 | . 11 11 6 2 . . Treads 1 | . . . 7 . . . Leg 16 | . 27 33 16 . . . Hover 1 | . . 5 . . . . Flight 3 | . . . 4 28 12 . Device 12 | . 6 11 13 15 11 15 Storage 9 | . 14 11 9 7 7 7 Hackware 2 | . . . . 4 7 7 Energy Gun 6 | . 7 9 12 3 4 . Energy Cannon 2 | . . 8 . 1 . . Ballistic Gun 1 | . 9 1 1 . . . Impact Weapon 1 | . . . . . . 6 Naked Turns . | . . . . . . . Heaviest Build 43 | 10 29 36 43 37 31 31 Greatest Support 66 | 20 20 40 66 33 26 14 Greatest Overweight (x) 10 | . 1 3 8 1 7 10 Average Overweight (x) . | . . . . . . 6 Largest Inventory Capacity 15 | . 15 15 15 15 15 15 Average Capacity 14 | . 9 15 15 15 15 15 Most Carried 15 | . 10 15 15 15 15 14 Average Carried 12 | . 7 13 14 13 14 12 Final Capacity 15 | 8 15 15 15 15 15 15 Final Carried 15 | 6 10 15 14 15 14 10 Scrap Engine Consumption 12 | . . . . . . 12 Constructs Created 1 | . . . . . . 1 Class Distribution -------------------- 48% | Mutant 42% | Scavenger-Mutant 9% | Sprinter Dominant Class ---------------- Mutant | -10/Materials Scavenger-Mutant | -9/Materials Scavenger-Mutant | -8/Materials Sprinter | -7/Factory Mutant | -7/Storage Mutant | -7/Recycling Resources | -11 -10 -9 -8 -7 -7 -7 ----------- Run | Yrd Mat Mat Mat Fac Sto Rec Matter Collected 1317 | 200 39 436 379 171 . 92 Remotely . | . . . . . . . Salvage Created 3637 | . 166 1212 819 216 . 1224 Parts 149 | . 8 83 42 5 . 11 Haulers Intercepted 4 | . . 3 1 . . . Recyclers Shooed 2 | . . 1 . . . 1 Parts Field Recycled . | . . . . . . . Retrieved Matter . | . . . . . . . Parts Self-Destructed . | . . . . . . . Prevented . | . . . . . . . Kills | -11 -10 -9 -8 -7 -7 -7 ------- Run | Yrd Mat Mat Mat Fac Sto Rec Combat Hostiles Destroyed 62 | . 4 28 20 4 . 6 Melee 5 | . . . . . . 5 Guns 38 | . 4 15 17 2 . . Cannons 14 | . . 13 . 1 . . AOE 2 | . . . 2 . . . Classes Destroyed 13 | . 1 8 1 . . 3 Worker 4 | . . 1 2 . . 1 Builder 3 | . . 1 2 . . . Tunneler 1 | . . . . . . 1 Hauler 4 | . . 3 1 . . . Recycler 9 | . . 1 . . . 8 Operator 2 | . . 2 . . . . Watcher 3 | . . 3 . . . . Swarmer 20 | . . 11 7 . . 2 Grunt 27 | . 4 11 9 3 . . Brawler 1 | . . . . . . 1 Duelist 1 | . . . 1 . . . Sentry 11 | . . 6 3 1 . 1 Programmer 2 | . . . . . . 2 Best Kill Streak 7 | . 2 4 4 3 . 7 Combat Bots Only 4 | . 2 4 4 3 . 2 Max Kills in Single Turn 3 | . 1 2 3 1 . 1 Gunslinging 1 | . . . 1 . . . Exploded 1 | . . . 1 . . . Melee 1 | . . . . . . 1 Uniques/NPCs Destroyed . | . . . . . . . Combat | -11 -10 -9 -8 -7 -7 -7 -------- Run | Yrd Mat Mat Mat Fac Sto Rec Hostile Shots Fired 547 | . 47 117 171 43 122 47 Missed 164 | . 11 30 47 11 48 17 Damage Taken 4841 | . 532 911 1715 441 786 456 Core 1266 | . 144 162 247 134 446 133 Absorbed by Shields . | . . . . . . . Regen/Repaired (Parts) 100 | . . . . . . 100 Core Remaining (%) 64 | 100 42 59 55 . . . Volleys Fired 228 | . 29 80 106 13 . . Largest 3 | . 2 2 2 3 . . Hottest 206 | . 70 133 133 206 . . Shots Fired 399 | . 57 159 156 27 . . Gun 304 | . 57 80 153 14 . . Cannon 94 | . . 79 2 13 . . Launcher 1 | . . . 1 . . . Special . | . . . . . . . Kinetic 104 | . 29 33 42 . . . Thermal 284 | . 28 126 103 27 . . Explosive 1 | . . . 1 . . . Electromagnetic 10 | . . . 10 . . . Robot Hit Streak 18 | . 14 18 10 7 . . Robot Miss Streak 10 | . 4 10 4 2 . . Penetration Max . | . . . . . . . Secondary Targets 3 | . 1 . 2 . . . Max Gunslinging Chain 1 | . 1 . 1 . . . Shots Hit Robots 293 | . 36 96 106 20 . 35 Core Hits 109 | . 12 41 46 7 . 3 Critical Kills 1 | . . . . . . 1 Critical Parts Destroyed 7 | . . . . . . 7 Critical Strikes 21 | . 3 7 2 1 . 8 Burn 13 | . 3 7 2 1 . . Smash 8 | . . . . . . 8 Melee Attacks 48 | . . . . . . 48 Impact 48 | . . . . . . 48 Slashing . | . . . . . . . Piercing . | . . . . . . . Sneak Attacks 13 | . . . . . . 13 Combat Hostiles 4 | . . . . . . 4 Follow-up Attacks 10 | . . . . . . 10 Damage Inflicted 7139 | . 370 1794 1881 440 . 2654 Guns 2803 | . 370 758 1517 158 . . Cannons 1293 | . . 1011 . 282 . . Explosions 343 | . . . 343 . . . Melee 2654 | . . . . . . 2654 Ramming 46 | . . 25 21 . . . Kinetic 919 | . 136 388 395 . . . Thermal 3236 | . 234 1381 1181 440 . . Explosive 118 | . . . 118 . . . Electromagnetic 166 | . . . 166 . . . Impact 2654 | . . . . . . 2654 Slashing . | . . . . . . . Piercing . | . . . . . . . Highest Corruption 3 | . . . . 1 1 3 Average Corruption 1 | . . . . 1 1 1 Corruption Purged . | . . . . . . . Corruption Blocked . | . . . . . . . Effects 10 | . . . . 2 . 8 Message Errors 2 | . . . . . . 2 Matter Fused 2 | . . . . . . 2 Heat Flow Errors 2 | . . . . . . 2 Energy Discharges 3 | . . . . 1 . 2 Parts Rejected 1 | . . . . 1 . . Overload Shots . | . . . . . . . Overflow Damage 1686 | . . 59 12 . . 1615 Projectiles 101 | . . 59 . . . 42 Explosions 12 | . . . 12 . . . Melee 1573 | . . . . . . 1573 Knockbacks 15 | . . 2 . . . 13 Impact 12 | . . . . . . 12 Kinetic 2 | . . 2 . . . . Secondary 1 | . . . . . . 1 Self-Inflicted Damage 85 | . . . 85 . . . Shots 3 | . . . 3 . . . Rammed . | . . . . . . . Targets Rammed 11 | . . 6 5 . . . Kicked 11 | . . 6 5 . . . Crushed . | . . . . . . . Highest Temperature 435 | . 435 228 294 390 . 216 Average Temperature 101 | . 172 68 73 188 . 110 Received Heat Transfer 1830 | . 306 258 801 288 177 . Effects 9 | . 3 . 3 3 . . Interference 5 | . . . 3 2 . . Matter Decay 2 | . 1 . . 1 . . Short Circuit 1 | . 1 . . . . . Damage (major) 1 | . 1 . . . . . Siege Activations . | . . . . . . . Robots Corrupted . | . . . . . . . Combat Hostiles . | . . . . . . . Parts Fried 22 | . . . . . . 22 Impact Corruptions 53 | . . . . . . 53 Robots Melted 3 | . . 1 1 1 . . Combat Hostiles 2 | . . . 1 1 . . Parts Melted 23 | . 1 12 7 3 . . Heat Transferred 8124 | . 889 3478 2800 957 . . Parts Sabotaged . | . . . . . . . Parts Stolen . | . . . . . . . Parts Stripped . | . . . . . . . Power Chain Reactions 2 | . . . 2 . . . Alert | -11 -10 -9 -8 -7 -7 -7 ------- Run | Yrd Mat Mat Mat Fac Sto Rec Peak Influence 605 | . 158 582 605 282 126 205 Initial 227 | . . 5 227 191 36 21 Average 233 | . 67 370 420 155 80 40 Maximum Alert Level 2 | . . 2 2 1 . 1 Low Security (%) 49 | . 100 10 . 67 100 99 Level 1 22 | . . 43 34 32 . . Level 2 28 | . . 46 65 . . . Level 3 . | . . . . . . . Level 4 . | . . . . . . . Level 5 . | . . . . . . . High Security . | . . . . . . . Max Security . | . . . . . . . Squads Dispatched 16 | . 2 4 8 2 . . Investigation 9 | . 2 3 2 2 . . Extermination . | . . . . . . . Reinforcement 4 | . . 1 3 . . . Assault 1 | . . . 1 . . . Garrison 2 | . . . 2 . . . Intercept . | . . . . . . . Searches Triggered . | . . . . . . . Construction Impeded 1 | . . . 1 . . . Haulers Reinforced . | . . . . . . . Active Scanning Responses . | . . . . . . . Cargo Convoy Interrupts . | . . . . . . . Stealth | -11 -10 -9 -8 -7 -7 -7 --------- Run | Yrd Mat Mat Mat Fac Sto Rec Distress Signals 4 | . 1 3 . . . . Communications Jammed . | . . . . . . . Distress Signals . | . . . . . . . Times Spotted 100 | . 10 36 31 10 9 4 Peak Tracking Total 10 | . 4 4 5 3 10 3 Tactical Retreats 8 | . 2 1 1 3 1 . Traps | -11 -10 -9 -8 -7 -7 -7 ------- Run | Yrd Mat Mat Mat Fac Sto Rec Traps Triggered 5 | . 2 1 1 . 1 . Indirectly . | . . . . . . . Trap Hack Attempts . | . . . . . . . Triggered . | . . . . . . . Disarmed . | . . . . . . . Reprogrammed . | . . . . . . . Reused . | . . . . . . . Traps Extracted . | . . . . . . . Installed . | . . . . . . . Triggered . | . . . . . . . Machines | -11 -10 -9 -8 -7 -7 -7 ---------- Run | Yrd Mat Mat Mat Fac Sto Rec Machines Disabled 4 | . . 1 3 . . . Max in Single Turn 1 | . . 1 1 . . . Machines Repaired . | . . . . . . . Machines Dismantled 1 | . . . 1 . . . Machines Sabotaged . | . . . . . . . Overloaded Fab Kills . | . . . . . . . Hacking | -11 -10 -9 -8 -7 -7 -7 --------- Run | Yrd Mat Mat Mat Fac Sto Rec Machines Accessed 18 | . 5 5 3 3 . 2 Terminals 16 | . 5 5 2 2 . 2 Fabricators . | . . . . . . . Repair Stations 1 | . . . 1 . . . Recycling Units 1 | . . . . 1 . . Scanalyzers . | . . . . . . . Garrison Access . | . . . . . . . Total Hacks 63 | . 18 18 11 12 . 4 Successful 28 | . 9 9 5 5 . . Failed 35 | . 9 9 6 7 . 4 Catastrophic 4 | . 1 1 . 1 . 1 Database Lockouts . | . . . . . . . Manual 41 | . 10 13 8 7 2 1 Terminals 60 | . 18 18 10 10 . 4 Fabricators . | . . . . . . . Repair Stations 1 | . . . 1 . . . Recycling Units 2 | . . . . 2 . . Scanalyzers . | . . . . . . . Garrison Access . | . . . . . . . Terminal Hacks 16 | . 6 4 2 4 . . Record 1 | . . 1 . . . . Robot Analysis 1 | . . . 1 . . . Prototype ID Bank 8 | . 4 2 1 1 . . Level Access Points 1 | . 1 . . . . . Terminal Index 2 | . 1 1 . . . . Unreport Threat 2 | . . . . 2 . . Recall Investigation 1 | . . . . 1 . . Fabricator Hacks . | . . . . . . . Repair Station Hacks 1 | . . . 1 . . . Scan Component 1 | . . . 1 . . . Recycling Unit Hacks . | . . . . . . . Scanalyzer . | . . . . . . . Garrison Access Hacks . | . . . . . . . Unauthorized Hacks 11 | . 3 5 2 1 . . Terminals 11 | . 3 5 2 1 . . Botnet 11 | . 3 5 2 1 . . Fabricators . | . . . . . . . Repair Stations . | . . . . . . . Recycling Units . | . . . . . . . Scanalyzers . | . . . . . . . Garrison Access . | . . . . . . . Data Cores Recovered 1 | . . 1 . . . . Used . | . . . . . . . Hacking Detections 17 | . 5 5 2 3 . 2 Full Trace Events 10 | . 3 3 1 2 . 1 Feedback Events 1 | . . . . 1 . . Corruption 1 | . . . . 1 . . Feedback Blocked . | . . . . . . . Robot Schematics Acquired . | . . . . . . . Robots Built . | . . . . . . . Authchips . | . . . . . . . Time . | . . . . . . . Total Robot Build Rating . | . . . . . . . Part Schematics Acquired . | . . . . . . . Parts Built . | . . . . . . . Authchips . | . . . . . . . Time . | . . . . . . . Total Part Build Rating . | . . . . . . . Parts Repaired . | . . . . . . . Time . | . . . . . . . Parts Recycled . | . . . . . . . Recycled Matter . | . . . . . . . Retrieved Matter . | . . . . . . . Retrieved Components . | . . . . . . . Parts Scanalyzed . | . . . . . . . Part Schematics Acquired . | . . . . . . . Parts Damaged . | . . . . . . . Bothacking | -11 -10 -9 -8 -7 -7 -7 ------------ Run | Yrd Mat Mat Mat Fac Sto Rec Used RIF Installer . | . . . . . . . Robots Hacked . | . . . . . . . Non-combat . | . . . . . . . Combat . | . . . . . . . Robot Hacks Applied . | . . . . . . . Relay Couplers Released . | . . . . . . . Fabnet Peak Effective % . | . . . . . . . Robots Rewired . | . . . . . . . Allies Hacked . | . . . . . . . Hacks Repelled . | . . . . . . . Allies | -11 -10 -9 -8 -7 -7 -7 -------- Run | Yrd Mat Mat Mat Fac Sto Rec Total Allies . | . . . . . . . Largest Group . | . . . . . . . Highest-Rated Group . | . . . . . . . Highest-Rated Ally . | . . . . . . . Total Orders . | . . . . . . . Ally Attacks . | . . . . . . . Total Damage . | . . . . . . . Kills . | . . . . . . . Allies Corrupted . | . . . . . . . Allies Melted . | . . . . . . . Intel | -11 -10 -9 -8 -7 -7 -7 ------- Run | Yrd Mat Mat Mat Fac Sto Rec Robot Analysis Total 1 | . . . 1 . . . Derelict Logs Recovered . | . . . . . . . Drone Launches . | . . . . . . . Drone Recoveries . | . . . . . . . Exploration | -11 -10 -9 -8 -7 -7 -7 ------------- Run | Yrd Mat Mat Mat Fac Sto Rec Turns Passed 4129 | . 514 1065 1028 330 55 1137 Spaces Moved 2253 | 1 310 574 488 526 65 289 Core 234 | . . . 5 . 7 222 Treads 196 | . . . 196 . . . Legs 931 | 1 310 492 128 . . . Wheels 67 | . . . . . . 67 Hover 82 | . . 82 . . . . Flight 743 | . . . 159 526 58 . Fastest Speed 29 | 120 120 108 31 29 32 174 Average Speed 134 | 120 129 126 128 35 77 357 Slowest Speed 550 | 120 190 330 450 112 400 550 Overloaded Moves . | . . . . . . . Propulsion Burnouts . | . . . . . . . Robots Hopped 2 | . . . 1 1 . . Cave-ins Triggered . | . . . . . . . Exploration Rate (%) 40 | 2 62 52 62 18 18 72 Regions Visited 6 Branch Regions 2 Pre-discovered Areas . | . . . . . . . Known Exits Taken 1 | . 1 . . . . . Unknown Exits Taken 5 | 1 . 1 1 1 1 . Scrap Searched . | . . . . . . . Spaces Dug . | . . . . . . . Terrain Destroyed 15 | . . . 15 . . . Melee . | . . . . . . . Projectile . | . . . . . . . AOE 15 | . . . 15 . . . Terrain Rammed . | . . . . . . . Walls Destroyed . | . . . . . . . Machines Disabled . | . . . . . . . Actions | -11 -10 -9 -8 -7 -7 -7 --------- Run | Yrd Mat Mat Mat Fac Sto Rec Total 2891 | . 370 754 718 650 71 328 Wait 167 | . 16 30 53 62 6 . Move 2243 | . 309 573 485 523 64 289 Hop 2 | . . . 1 1 . . Pick Up 33 | . 2 15 6 10 . . Fast Attach 38 | . 3 9 19 6 . 1 Attach 32 | . 2 8 7 10 1 4 Detach 21 | . 1 5 5 10 . . Swap 23 | . 5 9 7 2 . . Drop 54 | . 3 19 19 13 . . Fire 228 | . 29 80 106 13 . . Melee 34 | . . . . . . 34 Ram . | . . . . . . . Kick 11 | . . 6 5 . . . Crush . | . . . . . . . Escape Stasis . | . . . . . . . Rewire . | . . . . . . . Trap . | . . . . . . . Miscellaneous 5 | . . . 5 . . . Route ------- -11/Scrapyard -10/Materials (discovered 3 exits: *Mat x3) -9/Materials -8/Materials (discovered 2 exits: *Fac x2) -7/Factory -7/Storage -7/Recycling (discovered 1 exit: [*Fac]) History --------- Turn | Location | Event 1 | -11/Scrapyard | Discovered new exit (range 0) 1 | -11/Scrapyard | Entered Materials 264 | -10/Materials | Core integrity fell below 50% 308 | -10/Materials | Build established: Mutant 308 | -10/Materials | Lost 3 parts (1p1n1w) 378 | -10/Materials | Identified exit to Materials 515 | -10/Materials | Entered another Materials area 515 | -9/Materials | Evolved 2 slots: Propulsion x2 821 | -9/Materials | Build established: Scavenger-Mutant 1570 | -9/Materials | Discovered new exit (range 4) 1580 | -9/Materials | Entered another Materials area 1580 | -8/Materials | Evolved 2 slots: Utility x1, Weapon x1 1980 | -8/Materials | First assault squad dispatched 2058 | -8/Materials | Lost 7 parts (1p4n1u1w) 2309 | -8/Materials | Met 7R-MNS 2363 | -8/Materials | Discovered new exit (range 16) 2497 | -8/Materials | Garrison activated, responded to threat 2601 | -8/Materials | Discovered new exit (range 6) 2608 | -8/Materials | Entered Factory 2608 | -7/Factory | Evolved 2 slots: Utility x2 2934 | -7/Factory | Discovered new exit (range 13) 2938 | -7/Factory | Entered Storage 2976 | -7/Storage | Core integrity fell below 50% 2977 | -7/Storage | Used back door to open Recycling access 2977 | -7/Storage | Discovered new exit (range 5) 2991 | -7/Storage | Core integrity fell below 20% 2993 | -7/Storage | Entered Recycling 2993 | -7/Recycling | Found Scrap Engine 3019 | -7/Recycling | Lost 7 parts (3n3u1w) 3263 | -7/Recycling | Build established: Mutant 3420 | -7/Recycling | Discovered new exit (range 7) 4130 | -7/Recycling | Destroyed by S-27 Virus with Autogun Last Messages --------------- R-06 Scavenger collects Med. Matter Pod. Arm. Scrap Engine consumes Com. Wheel. Sneak attack on R-06 Scavenger. Destroyed Tractor Beam. Destroyed Com. Wheel. Destroyed Lgt. Ion Engine. R-06 Scavenger system corrupted by crushing effect. R-06 Scavenger knocked back. R-06 Scavenger system terminally corrupted. Com. Wheel fried. R-06 Scavenger collects Corrupted Sml. Storage Unit. Sneak attack on R-06 Scavenger. System corrupted: Heat flow error (+245). System corrupted: Energy discharge (-34). Sneak attack on P-60 Hacker. P-60 Hacker destroyed. Arm. Scrap Engine consumes Gravmag System. S-27 Virus springs to life. Map ----- +----------------------------------------------------+ | ??????????????# """ #?# | | ??????????????# """ #?# | | ??????????????# ### | | ??????????????# """ ## | | ??????????????# """ ### | | ??????????????# """ ??# | | ???????????????? ????# | | ?????????????#####+#########+### | | ?????????????# | | ?????????????# % % | | ???????????### % %% | | ???????????#"" ## #####+##+### | | ???????????#"Y ####???# % %% | | ???????????#"" #?####?# % | | ???????????### # ! #?#!!%%%%% | | ???????????#! #! #?# % | | ???????????#!! + #?# % %! | | ???????????#!! #! #?# % % % | | ???????????### # !!#?#] % | | ????########## #? !!#?#% | | ????# !% # #?! #?# | | ????#si k # #??!!#?######## | | ????# btk# #?? #????????? | | ????# %! a# #??? #????????? | | ????# ! # #??? #????????? | | ????# !@Y i # #????+????????? | | ????# s g + #?????????????? | | ????# r # #?????????????? | | ????#% %! # ???????????? | | ????#+######## ????????? | | ????????????? ??????? | | ?????????????##+##########?????? | | ???????????????????????????????? | | ???????????????????????????????? | | ???????????????????????????????? | | ???????????????????????????????? | | ???????????????????????????????? | | ???????????????????????????????? | | ???????????????????????????????? | | ???????????????????????????????? | | ???????????????????????????????? | | ???????????????????????????????? | | ???????????????????????????????? | | ???????????????????????????????? | | ???????????????????????????????? | | ???????????????????????????????? | | ???????????????????????????????? | | ???????????????????????????????? | | ???????????????????????????????? | | | +----------------------------------------------------+ Best States ------------- Heat Dissipation 48 Energy Generation 18 Energy Capacity 310 Matter Stores 300 Matter Capacity 300 Sight Range 16 Robot Scan Range 15 Terrain Scan Density 10 Additional Mass Support 9 Armor Coverage 225 Evasion (%) 64 Targeting Accuracy 5 Recoil Reduction 3 Offensive Hacking 10 Item Schematics ----------------- None Robot Schematics ------------------ None Fabricated ------------ Nothing Alien Tech Used ----------------- None Achievements -------------- None Challenges ------------ None Game ------ Seed DeliveryRegenerativeFlail Manual? 0 Play Time 00:53:13 Cumulative 53.2 hours Start 2024.04.13 @ 18:13:52 End 2024.04.13 @ 19:04:01 Sessions 1 Manual Loads 0 Difficulty Rogue Special Mode None Game No. 125 Rogue 123 Adventurer 2 Explorer 0 Win Type - Total 0 Types 0/0/0/0/0/0/0/0/0 Lore% 33 Gallery% 41 Achievement% 32 Wizard Run 0 Options --------- Layout 2 ASCII 0 Keyboard 1 Movement Numpad Keybinds 1 Fullscreen 2 Font 24/Smallcaps Map View 50x44 Zoom Use 0% Tactical HUD 1 Map Filters NONE Filters NONE Steam 1 RUN: 70ea9dca-13c0-4fe7-b6d3-55c87a18fe01